Cogmind - Beta 17 @@@ ROGUE MODE // 2026.07.08 @ 16:37:39 Player: Kretinosaurus Result: Destroyed by Y-45 Defender with Heavy Assault Rifle Performance ------------- Evolutions (1) 500 Regions Visited (2) 400 Robots Destroyed (22) 110 Value Destroyed (442) 442 Prototype IDs (0) 0 Alien Tech Used (0) 0 Bonus (0) 0 TOTAL SCORE: 1452 Bonus ------- None Cogmind --------- Core Integrity 0/400 Matter 119/300 Energy 98/100 System Corruption 0% Temperature Cool (9) Movement Core (50) Location -9/Materials Parts ------- > --- POWER (1) -------- (None) > --- PROPULSION (4) --- (None) > --- UTILITY (2) ------ (None) > --- WEAPON (2) ------- (None) > --- INVENTORY (5) ---- Improved Ion Engine Small Storage Unit Targeting Computer Hardened Light Armor Plating Hacking Suite Peak State ------------ > --- POWER ------------ Improved Ion Engine > --- PROPULSION ------- Hover Unit Hover Unit Hover Unit Hover Unit > --- UTILITY ---------- Medium Storage Unit Seismic Detector > --- WEAPON ----------- Assault Rifle Heavy Assault Rifle > --- INVENTORY -------- Improved Ion Engine Light Treads Light Treads Light Treads Small Storage Unit Targeting Computer Hardened Light Armor Plating Hacking Suite Assault Rifle [Rating: 12] Favorites ----------- Power Ion Engine Engine Ion Engine Propulsion Hover Unit Treads Light Treads Leg Aluminum Leg Hover Unit Hover Unit Utility Seismic Detector Device Seismic Detector Storage Small Storage Unit Weapon Assault Rifle Ballistic Gun Assault Rifle Build | -11 -10 -9 ------- Run | Yrd Mat Mat Slots Evolved 2 | . . 2 Power . | . . . Propulsion 2 | . . 2 Utility . | . . . Weapon . | . . . Parts Attached 22 | 8 4 10 Power 3 | 1 1 1 Engine 3 | 1 1 1 Core . | . . . Reactor . | . . . Propulsion 11 | 3 2 6 Treads 4 | 1 2 1 Leg 2 | 2 . . Wheel . | . . . Hover 5 | . . 5 Flight . | . . . Utility 4 | 3 . 1 Device 2 | 2 . . Storage 2 | 1 . 1 Processor . | . . . Hackware . | . . . Protection . | . . . Artifact . | . . . Weapon 4 | 1 1 2 Energy Gun . | . . . Energy Cannon . | . . . Ballistic Gun 4 | 1 1 2 Ballistic Cannon . | . . . Launcher . | . . . Special Weapon . | . . . Impact Weapon . | . . . Slashing Weapon . | . . . Piercing Weapon . | . . . Special Melee Weapon . | . . . Unidentified Prototypes . | . . . Parts Lost 13 | . 2 11 Power . | . . . Propulsion 8 | . 1 7 Utility 1 | . . 1 Weapon 4 | . 1 3 Highest Loss Streak 9 | . 1 9 To Critical Strikes . | . . . Average Backups 6 | 4 6 7 Power . | . . . Propulsion 2 | 1 3 2 Utility 2 | . 1 3 Weapon 1 | 1 1 . Tool/Special . | . . . Unused Backups 9 | 1 1 7 Power 1 | . . 1 Propulsion 1 | 1 . . Utility 7 | . 1 6 Weapon . | . . . Tool/Special . | . . . Average Slot Usage (%) 89 | . 95 81 Engine 12 | . 14 10 Treads 13 | . 22 1 Leg 3 | . 5 . Hover 12 | . . 29 Device 12 | . 14 10 Storage 12 | . 14 10 Ballistic Gun 21 | . 23 18 Peak Build Rating 12 | 8 8 12 Average Rating 7 | 5 6 9 On Entrance 4 | . 6 6 Avg Prop Armor Cover (%) 14 | 14 . . Naked Turns 16 | . . 16 Heaviest Build 23 | 13 15 23 Greatest Support 40 | 20 40 40 Greatest Overweight (x) 6 | 2 . 6 Average Overweight (x) . | . . . Largest Inventory Capacity 10 | 8 8 10 Average Capacity 8 | 7 8 9 Most Carried 9 | 6 8 9 Average Carried 6 | 4 7 7 Final Capacity 8 | 8 8 5 Final Carried 7 | 6 7 5 Class Distribution -------------------- 100% | Mutant Dominant Class ---------------- Mutant | -10/Materials Mutant | -9/Materials Resources | -11 -10 -9 ----------- Run | Yrd Mat Mat Matter Collected 747 | 333 239 175 Remotely . | . . . Salvage Created 640 | 158 228 254 Parts 46 | 15 15 16 Haulers Intercepted . | . . . Recyclers Shooed . | . . . Parts Field Recycled . | . . . Retrieved Matter . | . . . Parts Self-Destructed . | . . . Prevented . | . . . Parts Restored . | . . . Kills | -11 -10 -9 ------- Run | Yrd Mat Mat Combat Hostiles Destroyed 14 | . 6 8 Guns 14 | . 6 8 Classes Destroyed 7 | 2 3 2 Tunneler 5 | 5 . . Recycler 1 | 1 . . Operator 1 | . 1 . Watcher 1 | . . 1 Swarmer 6 | . 2 4 Grunt 7 | . 4 3 Sentry 1 | . . 1 Best Kill Streak 2 | 1 2 2 Combat Bots Only 2 | . 2 2 Max Kills in Single Turn 1 | 1 1 1 Gunslinging . | . . . Exploded . | . . . Melee . | . . . Uniques/NPCs Destroyed . | . . . Combat | -11 -10 -9 -------- Run | Yrd Mat Mat Hostile Shots Fired 210 | . 92 118 Missed 60 | . 29 31 Hits 150 | . 63 87 Projectile 150 | . 63 87 Critical Strikes 4 | . 3 1 Damage Taken 1785 | . 805 980 Core 501 | . 98 403 Absorbed by Shields . | . . . Core Remaining (%) 80 | 100 60 . Volleys Fired 119 | 20 43 56 Largest 2 | 1 2 2 Hottest 43 | 20 40 43 Shots Fired 185 | 20 67 98 Gun 185 | 20 67 98 Cannon . | . . . Launcher . | . . . Special . | . . . Kinetic 185 | 20 67 98 Thermal . | . . . Explosive . | . . . Electromagnetic . | . . . Robot Hit Streak 8 | 2 6 8 Robot Miss Streak 6 | 3 6 6 Penetration Max . | . . . Secondary Targets . | . . . Shots Hit Robots 100 | 9 37 54 Core Hits 36 | 6 14 16 Critical Kills . | . . . Critical Parts Destroyed 2 | . 1 1 Critical Strikes 2 | . 1 1 Destroy 2 | . 1 1 Melee Attacks . | . . . Impact . | . . . Slashing . | . . . Piercing . | . . . Sneak Attacks . | . . . Combat Hostiles . | . . . Follow-up Attacks . | . . . Damage Inflicted 1355 | 135 487 733 Guns 1307 | 135 468 704 Cannons . | . . . Explosions . | . . . Melee . | . . . Ramming 48 | . 19 29 Kinetic 1307 | 135 468 704 Thermal . | . . . Explosive . | . . . Electromagnetic . | . . . Impact . | . . . Slashing . | . . . Piercing . | . . . Highest Corruption . | . . . Average Corruption . | . . . Corruption Purged . | . . . Corruption Blocked . | . . . Overload Shots . | . . . Overflow Damage . | . . . Projectiles . | . . . Explosions . | . . . Melee . | . . . Knockbacks . | . . . Impact . | . . . Kinetic . | . . . Secondary . | . . . Self-Inflicted Damage 13 | . . 13 Shots . | . . . Rammed 8 | . 4 4 Targets Rammed 9 | . 5 4 Kicked . | . . . Crushed 1 | . 1 . Highest Temperature 30 | . 30 6 Average Temperature 7 | . 10 2 Received Heat Transfer 774 | . 402 372 Siege Activations . | . . . Martial Activations . | . . . Shielding Activations . | . . . Robots Disrupted . | . . . Combat Hostiles . | . . . Robots Corrupted . | . . . Combat Hostiles . | . . . Parts Fried . | . . . Impact Corruptions . | . . . Robots Melted . | . . . Combat Hostiles . | . . . Parts Melted . | . . . Heat Transferred . | . . . Parts Sabotaged . | . . . Parts Stolen . | . . . Parts Stripped . | . . . Power Chain Reactions . | . . . Alert | -11 -10 -9 ------- Run | Yrd Mat Mat Maximum Alert Level . | . . . Low Security (%) 100 | 100 100 100 Level 1 . | . . . Level 2 . | . . . Level 3 . | . . . Level 4 . | . . . Level 5 . | . . . High Security . | . . . Max Security . | . . . Peak Influence 70 | 5 42 70 Initial 7 | . . 7 Average 14 | 1 11 24 Influence Increases 448 | 30 169 249 Destroy 0b10 Robot/C 280 | . 120 160 Destroy 0b10 Robot/NC 40 | 30 5 5 Destroy Leader 82 | . 30 52 Successful Hack 31 | . 14 17 Lose Combat Pursuer 15 | . . 15 Influence Decreases 433 | 30 151 252 Entered New Map 11 | . . 11 Time Decay 335 | 30 141 164 Lost Part 87 | . 10 77 Squads Dispatched 8 | . 2 6 Investigation 3 | . 1 2 Extermination . | . . . Reinforcement 5 | . 1 4 Assault . | . . . Garrison . | . . . Intercept . | . . . Searches Triggered . | . . . Construction Impeded . | . . . Haulers Reinforced . | . . . Active Scanning Responses . | . . . Cargo Convoy Interrupts . | . . . Stealth | -11 -10 -9 --------- Run | Yrd Mat Mat Distress Signals 1 | . . 1 Communications Jammed . | . . . Distress Signals . | . . . Times Spotted 44 | . 18 26 Peak Tracking Total 11 | . 4 11 Tactical Retreats 1 | . . 1 Traps | -11 -10 -9 ------- Run | Yrd Mat Mat Traps Triggered 3 | . 2 1 Indirectly . | . . . Trap Hack Attempts . | . . . Triggered . | . . . Disarmed . | . . . Reprogrammed . | . . . Reused . | . . . Traps Extracted . | . . . Installed . | . . . Triggered . | . . . Machines | -11 -10 -9 ---------- Run | Yrd Mat Mat Machines Disabled . | . . . Max in Single Turn . | . . . Machines Repaired . | . . . Machines Dismantled . | . . . Machines Sabotaged . | . . . Overloaded Fab Kills . | . . . Hacking | -11 -10 -9 --------- Run | Yrd Mat Mat Machines Accessed 8 | . 4 4 Terminals 6 | . 4 2 Fabricators . | . . . Repair Stations . | . . . Recycling Units 1 | . . 1 Scanalyzers 1 | . . 1 Garrison Access . | . . . Total Hacks 23 | . 9 14 Successful 12 | . 3 9 Failed 10 | . 6 4 Catastrophic 2 | . 2 . Database Lockouts 1 | . . 1 Manual 8 | . 2 6 Terminals 15 | . 9 6 Fabricators . | . . . Repair Stations . | . . . Recycling Units 5 | . . 5 Scanalyzers 3 | . . 3 Garrison Access . | . . . Terminal Hacks 6 | . 3 3 Record 5 | . 3 2 Zone Layout 1 | . . 1 Fabricator Hacks . | . . . Repair Station Hacks . | . . . Recycling Unit Hacks 4 | . . 4 Recycle Component 1 | . . 1 Report Inventory 1 | . . 1 Retrieve Matter 1 | . . 1 Retrieve Components 1 | . . 1 Scanalyzer 2 | . . 2 Insert Component 1 | . . 1 Analyze 1 | . . 1 Garrison Access Hacks . | . . . Unauthorized Hacks . | . . . Terminals . | . . . Fabricators . | . . . Repair Stations . | . . . Recycling Units . | . . . Scanalyzers . | . . . Garrison Access . | . . . Data Cores Recovered . | . . . Used . | . . . Hacking Detections 6 | . 3 3 Full Trace Events 3 | . 1 2 Feedback Events . | . . . Feedback Blocked . | . . . Robot Schematics Acquired . | . . . Robots Built . | . . . Authchips . | . . . Time . | . . . Total Robot Build Rating . | . . . Part Schematics Acquired 1 | . . 1 Parts Built . | . . . Authchips . | . . . Time . | . . . Total Part Build Rating . | . . . Part Studies Acquired . | . . . Parts Repaired . | . . . Time . | . . . Parts Recycled 1 | . . 1 Recycled Matter . | . . . Retrieved Matter . | . . . Retrieved Components 1 | . . 1 Parts Scanalyzed 1 | . . 1 Part Schematics Acquired 1 | . . 1 Parts Damaged . | . . . Bothacking | -11 -10 -9 ------------ Run | Yrd Mat Mat Used RIF Installer . | . . . Robots Hacked . | . . . Non-combat . | . . . Combat . | . . . Robot Hacks Applied . | . . . Relay Couplers Released . | . . . Fabnet Peak Effective % . | . . . Robots Rewired . | . . . Allies Hacked . | . . . Hacks Repelled . | . . . Allies | -11 -10 -9 -------- Run | Yrd Mat Mat Total Allies . | . . . Largest Group . | . . . Highest-Rated Group . | . . . Highest-Rated Ally . | . . . Total Orders . | . . . Ally Attacks . | . . . Total Damage . | . . . Kills . | . . . Allies Corrupted . | . . . Allies Melted . | . . . Intel | -11 -10 -9 ------- Run | Yrd Mat Mat Active Infowar (turns) 1128 | 140 572 416 Terrain 65 | 65 . . Seismic 1063 | 75 572 416 Robot Analysis Total . | . . . Derelict Logs Recovered . | . . . Drone Launches . | . . . Drone Recoveries . | . . . Exploration | -11 -10 -9 ------------- Run | Yrd Mat Mat Turns Passed 1231 | 224 572 435 Spaces Moved 738 | 139 286 313 Core 37 | 6 . 31 Treads 233 | . 226 7 Legs 193 | 133 60 . Wheels . | . . . Hover 275 | . . 275 Flight . | . . . Fastest Speed 48 | 50 120 48 Average Speed 113 | 119 151 77 Slowest Speed 350 | 150 160 350 Overloaded Moves . | . . . Propulsion Burnouts . | . . . Robots Hopped . | . . . Potential Cave-ins . | . . . Cave-ins Triggered . | . . . Exploration Rate (%) 27 | 5 53 25 Regions Visited 2 Branch Regions . Pre-discovered Areas . | . . . Known Exits Taken . | . . . Unknown Exits Taken 2 | 1 1 . Scrap Searched . | . . . Spaces Dug . | . . . Terrain Destroyed . | . . . Melee . | . . . Projectile . | . . . AOE . | . . . Terrain Rammed . | . . . Walls Destroyed . | . . . Machines Disabled . | . . . Actions | -11 -10 -9 --------- Run | Yrd Mat Mat Total 937 | 174 355 408 Wait 20 | . 7 13 Move 737 | 138 286 313 Hop . | . . . Pick Up 19 | 7 6 6 Fast Attach 7 | 6 . 1 Attach 9 | . 2 7 Detach . | . . . Swap 10 | 2 3 5 Drop 8 | 1 4 3 Fire 119 | 20 43 56 Melee . | . . . Ram 4 | . . 4 Kick . | . . . Crush 4 | . 4 . Escape Stasis . | . . . Rewire . | . . . Trap . | . . . Miscellaneous . | . . . Route ------- -11/Scrapyard -10/Materials (discovered 2 exits: *Mat / [*Min]) -9/Materials History --------- Turn | Location | Event 5 | -11/Scrapyard | Discovered new exit (range 15) 225 | -11/Scrapyard | Entered Materials 316 | -10/Materials | Build established: Mutant 332 | -10/Materials | Discovered new exit (range 14) 478 | -10/Materials | Discovered new exit (range 10) 797 | -10/Materials | Entered another Materials area 797 | -9/Materials | Evolved 2 slots: Propulsion x2 858 | -9/Materials | Central database locked down 1216 | -9/Materials | Released all parts (3) 1218 | -9/Materials | Core integrity fell below 50% 1230 | -9/Materials | Core integrity fell below 20% 1232 | -9/Materials | Destroyed by Y-45 Defender with Heavy Assault Rifle Last Messages --------------- 01178_ K-01 Serf collects debris. 01181_ M-13 Machinist repairs Y-45 Defender. 01182_ K-01 Serf collects debris. 01186_ Lgt. Treads destroyed. 01186_ K-01 Serf collects debris. 01187_ Assault Rifle destroyed. 01187_ Lgt. Treads destroyed. 01192_ G-34 Mercenary destroyed. 01209_ R-06 Scavenger collects Sml. Laser. 01213_ Seismic Detector destroyed. 01215_ R-06 Scavenger collects Ion Engine. 01215_ Assault Rifle destroyed. 01216_ M-13 Machinist repairs G-34 Mercenary. 01216_ Released Imp. Ion Engine. 01216_ Released Med. Storage Unit. 01216_ Released Lgt. Treads. 01216_ Slammed into G-34 Mercenary. 01218_ R-06 Scavenger collects Aluminum Leg. 01228_ R-06 Scavenger collects Med. Storage Unit. 01229_ Slammed into K-01 Serf. Map ----- +----------------------------------------------------+ | """ #????????????????????????????????????????????? | | """ #????###?????????????????????????????????????? | | ###### ####?????????###########??????????????? | | # T [ #?????????# #???###########? | | # ! [! #?????????# ##### #? | | # """ [[! #?######### "" # # #? | | # """ #?# """" ## """ # # #? | | ##### """ #?# """" ## """ S" # # #? | | + """ #?# """" ## """ """ + / """ #? | | ##### """ ### ## """ """ # # """ #? | | #???# / + + ## # # "Y" """ #? | | #######+#####+### %=############ # """ #? | | #### #######+## ####### ###########? | | # # #??????????? | | + * # #??????????? | | ##### # ** / #??????????? | | ###### """" """" """" # **! # #??????????? | | # """" """" """" # # #??????????? | | # """" """" """" ####### ##?????????? | | + ###### #?????????? | | """ # g gg #?????????? | | """ ###"T"###"T"### Ygg T #?????????? | | """ #?#"""#?#"""#?# g* % #?????????? | | #?#####?#####?###### ###### % ??? | | """ #??????????????????# #????###+######## ???? | | """ #??????????????????#@ #??????? ???????????? | | """ #??????????????????# #???????" ???????????? | | #??????????????????# o#???????" ???????????? | | ######??????????????????# #????????????????????? | | ????????????????????????# #????????????????????? | | ????????????????????????# #????????????????????? | | ??????????????########### #????????????????????? | | ??????????????# # #????????????????????? | | ??????????????## """ # #????????????????????? | | ???????????????# """ # #????????????????????? | | ???????????????# """ #w #????????????????????? | | ???????????????# # #????????????????????? | | ????????????????????????# #????????????????????? | | ????????????????????????/ +????????????????????? | | ????????????????????????# k#????????????????????? | | ????????????????????????# ????????????????????? | | ????????????????????????# ????????????????????? | | ???????????????????????? ????????????????????? | | ????????????????????????? ????????????????????? | | ????????????????????????? ?????????????????????? | | ?????????????????????????????????????????????????? | | ?????????????????????????????????????????????????? | | ?????????????????????????????????????????????????? | | ?????????????????????????????????????????????????? | | ?????????????????????????????????????????????????? | +----------------------------------------------------+ Best States ------------- Heat Dissipation 28 Energy Generation 12 Energy Capacity 265 Matter Stores 300 Matter Capacity 300 Sight Range 16 Terrain Scan Range 16 Terrain Scan Density 10 Evasion (%) 55 Recoil Reduction 2 Item Schematics ----------------- Med. Armor Plating | -9/Materials | Scanalyzed Robot Schematics ------------------ None Fabricated ------------ Nothing Repaired ---------- Nothing Studied --------- None Alien Tech Used ----------------- None Achievements -------------- Ghost 'Em Storm Trooper Challenges ------------ None Game ------ Seed OpticalGuidedFragment Manual? 0 Play Time 00:32:58 Cumulative 2.1 hours Start 2026.07.08 @ 09:44:48 End 2026.07.08 @ 16:37:39 Sessions 3 Manual Loads 0 Difficulty Rogue Special Mode None Game No. 3 Rogue 1 Adventurer 2 Explorer 0 Win Type - Total 0 Types 0/0/0/0/0/0/0/0/0/0 Lore% 1 Gallery% 4 Achievement% 6 Wizard Run 0 Options --------- Layout 0 ASCII 0 Keyboard 1 Movement Numpad Keybinds 0 Fullscreen 1 Font 18/SmallcapsGlow Map View 76x50 Zoom Use 30% Tactical HUD 1 Map Filters NONE Filters NONE Steam 1 RUN: 1e5d10f2-4fb7-423a-8869-c9fd08f72cbe